bitfinex/quotes_ETHUSD_20240530
["timestamp","ask_amount","ask_price","bid_price","bid_amount"]
[1717060259065,2.67711,3735.4,3734.7,0.08077014]
[1717060259384,2.67711,3735.4,3734.8,1.29789222]
[1717060264535,3.141121,3735.4,3734.8,1.29789222]
[1717060264900,2.67726,3735.2,3734.8,1.29789222]
[1717060265100,1.963,3735.3,3734.9,0.08020278]
[1717060265101,2.67737,3735.0,3734.9,0.08020278]
[1717060265296,4.64037,3735.0,3733.6,5.4667]
[1717060265677,2.67771,3734.6,3733.7,2.66288637]
[1717060265819,4.64071,3734.6,3733.7,1.37821637]
[1717060270668,2.67771,3734.6,3733.7,1.37821637]
[1717060273017,2.6779,3734.3,3733.7,1.37821637]
[1717060273146,1.963,3734.2,3733.7,1.37821637]
[1717060274103,2.67804,3734.1,3733.7,1.37821637]
[1717060274649,2.67769,3734.6,3733.7,1.37821637]
[1717060274922,2.67769,3734.6,3733.8,1.29789222]
[1717060274923,4.48906106,3734.5,3733.8,1.29789222]
[1717060275094,1.94666185,3734.4,3733.8,1.29789222]
[1717060275255,2.67769,3734.6,3733.9,2.2815]
[1717060275598,1.94648478,3734.5,3734.0,1.29789222]
[1717060275949,1.94648478,3734.5,3734.1,0.07797797]
[1717060276192,1.94648478,3734.5,3734.2,1.29789222]
[1717060276613,7.38,3734.9,3734.3,0.07795774]
[1717060276904,1.9462554,3734.8,3734.4,1.29789222]
[1717060277048,7.38,3734.9,3734.4,1.29789222]
[1717060277253,7.38,3734.9,3734.5,0.0777352]
[1717060277254,1.94623857,3734.8,3734.5,0.0777352]
[1717060277466,1.94623857,3734.8,3734.6,1.29789222]
[1717060277670,2.67734,3735.1,3734.6,1.29789222]
[1717060277949,1.94627193,3735.0,3734.7,3.69979222]
[1717060278153,1.94627193,3735.0,3734.6,0.13756274]
[1717060278154,2.67623,3736.6,3735.0,2.4019]
[1717060278409,0.57919692,3736.5,3736.0,1.29789222]
[1717060278552,0.57919692,3737.0,3736.0,3.69979222]
[1717060278896,2.67588,3737.1,3736.1,0.68107579]
[1717060279097,2.67588,3737.1,3736.6,1.29789222]
[1717060279444,2.67588,3737.1,3736.7,0.07716936]
[1717060279645,2.67549,3737.7,3736.8,1.29789222]
[1717060282881,2.67549,3737.7,3736.9,0.07676099]
[1717060283078,2.67549,3737.7,3737.0,1.29789222]
[1717060283294,2.943039,3737.7,3737.0,1.29789222]
[1717060283496,4.906039,3737.7,3737.1,0.07676645]
[1717060283789,4.906039,3737.7,3737.1,1.29789222]
[1717060285557,2.67549,3737.7,3737.2,1.29789222]
[1717060290240,2.67549,3737.7,3737.3,0.07334881]
[1717060290396,2.67549,3737.7,3737.4,1.29789222]
[1717060290723,2.67549,3737.7,3737.5,0.07328701]
[1717060290929,2.67549,3737.7,3737.5,1.29789222]
[1717060291140,2.67549,3737.7,3737.6,0.07328331]
[1717060292791,2.67549,3737.7,3737.6,1.37117553]
[1717060294300,5.67506,3738.3,3737.6,1.50829308]
[1717060294500,5.67506,3738.3,3737.7,1.29789222]
[1717060298341,2.67534,3737.9,3737.7,1.29789222]
[1717060298849,2.67534,3737.9,3737.8,0.07306793]
[1717060299007,2.67534,3737.9,3736.7,2.67612]
[1717060299209,2.67534,3737.9,3737.8,0.07306793]
[1717060299433,2.67534,3737.9,3736.9,1.29789222]
[1717060299743,2.67534,3737.9,3737.0,0.39740122]
[1717060299902,2.67534,3737.9,3737.1,1.29789222]
[1717060300102,2.67534,3737.9,3737.2,0.07311252]
[1717060300332,2.67534,3737.9,3737.3,1.29789222]
[1717060300721,2.67534,3737.9,3737.4,0.07309232]
[1717060300912,2.67534,3737.9,3737.5,1.29789222]
[1717060306460,2.67534,3737.9,3737.6,0.07304655]
[1717060306641,2.67534,3737.9,3737.7,1.29789222]
[1717060306961,2.67497,3738.4,3737.7,1.37092868]
[1717060307128,2.67497,3738.4,3737.8,0.13709287]
[1717060307330,2.67497,3738.4,3737.9,1.29789222]
[1717060307534,2.67497,3738.4,3737.9,1.3708509]
[1717060310223,2.67497,3738.4,3737.9,1.29789222]
[1717060312374,0.57872788,3738.3,3737.9,1.29789222]
[1717060312534,0.57872788,3738.3,3738.0,0.14349851]
[1717060312736,2.67497,3738.4,3738.1,1.29789222]
[1717060315406,0.57872907,3738.3,3738.1,1.29789222]
[1717060315611,0.57872907,3738.3,3738.2,0.07279084]
[1717060315766,0.57872907,3738.3,3738.2,1.37068306]
[1717060317866,0.57873683,3738.3,3738.2,1.37068306]
[1717060320919,0.57873614,3738.3,3738.2,1.37068306]
[1717060321284,2.52329129,3738.3,3738.2,1.37068306]
[1717060322221,2.52329129,3738.3,3738.2,1.52210122]
[1717060322425,2.52329129,3738.3,3738.2,3.90590122]
[1717060322426,1.94455515,3738.3,3738.2,3.90590122]
[1717060322742,0.05087541,3738.6,3738.2,3.90590122]
[1717060323044,0.05087541,3738.6,3738.3,1.29789222]
[1717060323239,0.05087541,3738.6,3738.4,0.39059012]
[1717060323446,0.05087541,3738.6,3738.5,1.29789222]
[1717060323600,0.05087541,3738.6,3738.5,1.37045767]
[1717060331296,0.05087541,3738.6,3738.5,0.07256545]
[1717060331603,2.67488,3738.5,3737.8,2.3447]
[1717060331799,2.67488,3738.5,3737.9,1.83236222]
[1717060332045,0.05087541,3738.6,3737.9,1.29789222]
[1717060332046,2.67504,3738.3,3737.9,1.29789222]
[1717060332545,2.67515,3738.1,3737.9,1.29789222]
[1717060332741,0.57872211,3738.0,3737.9,1.29789222]
[1717060337597,2.67552,3737.6,3736.7,2.3497]
[1717060337801,2.67552,3737.6,3736.8,2.27086222]
[1717060338018,2.67573,3737.3,3736.8,1.29789222]
[1717060341819,2.67541,3737.8,3737.0,1.29789222]
[1717060343546,9.7963,3738.3,3737.6,2.4768]
[1717060343547,10.05501,3738.3,3737.6,2.4768]
[1717060343782,0.57877215,3738.2,3737.7,1.67536144]
[1717060344081,2.67501,3738.3,3737.7,1.67536144]
[1717060345964,2.67501,3738.3,3737.8,0.07022389]
[1717060346292,2.67501,3738.3,3737.7,1.67536144]
[1717060346293,2.67501,3738.3,3737.9,1.29789222]
[1717060347362,2.67501,3738.3,3737.9,1.78332215]
[1717060348852,0.05087541,3738.6,3738.0,2.2739]
[1717060349056,0.05087541,3738.6,3738.1,1.29789222]
[1717060349256,0.05087541,3738.6,3738.1,1.36808582]
[1717060357864,0.05087541,3738.6,3738.3,1.29789222]
[1717060358185,0.05087541,3738.6,3738.4,0.52917804]
[1717060358364,0.05087541,3738.6,3738.5,1.29789222]
[1717060358763,0.05087541,3738.6,3738.5,1.36774798]
[1717060359584,2.01387541,3738.6,3738.5,0.06985576]
[1717060359803,2.71309495,3738.6,3738.5,0.06985576]
[1717060360005,2.67488,3738.5,3737.5,2.4889]
[1717060360204,2.67488,3738.5,3737.6,1.29789222]
[1717060360381,2.67488,3738.5,3737.6,1.36542225]
[1717060362449,2.67511,3738.2,3737.6,1.36542225]
[1717060363895,2.67524,3738.0,3737.6,1.36542225]
[1717060364102,2.67524,3738.0,3737.6,1.29789222]
[1717060365437,0.57879542,3737.9,3737.6,1.29789222]
[1717060365812,2.67524,3738.0,3737.7,0.06774376]
[1717060366019,2.67524,3738.0,3737.8,1.43445582]
[1717060366216,2.67524,3738.0,3737.9,0.06794427]
[1717060367349,2.67524,3738.0,3737.9,1.36583649]
[1717060367511,2.67491,3738.5,3737.9,1.36583649]
[1717060367714,0.5787234,3738.4,3738.0,1.29789222]
[1717060367912,0.5787234,3738.4,3738.1,0.06792408]
[1717060368107,2.67491,3738.5,3738.2,1.29789222]
[1717060368448,0.57871171,3738.4,3738.2,1.29789222]
[1717060376569,0.57871171,3738.4,3736.8,10.38]
[1717060376570,5.02863,3737.9,3736.8,9.6873]
[1717060376720,1.963,3737.7,3736.9,1.29789222]
[1717060376923,1.963,3737.7,3736.9,1.36353019]
[1717060377562,0.57883859,3737.8,3736.9,1.36353019]
[1717060379525,2.67549,3737.7,3736.9,1.36353019]
[1717060379725,0.57884443,3737.6,3736.9,1.36353019]
[1717060379927,0.57884443,3737.6,3736.9,1.73061321]
[1717060382673,0.57884057,3737.6,3736.9,1.73061321]
[1717060382869,2.67549,3737.7,3736.9,1.73061321]
[1717060384960,2.67576,3737.3,3736.9,1.36353019]
[1717060387077,2.6754,3737.8,3736.9,1.36353019]
[1717060387386,0.57886623,3737.7,3736.9,1.36353019]
[1717060387540,2.6754,3737.8,3737.0,0.36708302]
[1717060387740,2.6754,3737.8,3737.1,1.36400578]
[1717060390151,2.67502,3738.3,3737.4,1.29789222]
[1717060390350,0.57876329,3738.2,3737.4,1.29789222]
[1717060390558,0.57876329,3738.2,3737.5,0.06607317]
[1717060390779,0.57876329,3738.2,3737.6,1.43428876]
[1717060391188,0.57876329,3738.2,3737.7,0.06605298]
[1717060391360,0.57876329,3738.2,3737.8,1.29789222]
[1717060391745,0.57876329,3738.2,3737.9,0.06603278]
[1717060391946,0.57876329,3738.2,3738.0,1.29789222]
[1717060392263,0.57876329,3738.2,3738.1,0.06601259]
[1717060392468,0.57876329,3738.2,3738.1,1.36390481]
[1717060394360,0.57876329,3738.2,3738.1,1.50029529]
[1717060394903,2.67502,3738.3,3738.1,1.50029529]
[1717060395089,2.67502,3738.3,3738.2,1.29789222]
[1717060395603,3.25371797,3738.3,3738.2,1.29789222]
[1717060396793,3.25374159,3738.3,3738.2,1.29789222]
[1717060398265,3.25373382,3738.3,3738.2,1.29789222]
[1717060400616,4.07073382,3738.3,3738.2,1.29789222]
[1717060402720,4.07073382,3738.3,3738.2,1.36358869]
[1717060403211,4.07075096,3738.3,3738.2,1.36358869]
[1717060403746,3.25375096,3738.3,3738.2,1.36358869]
[1717060403912,4.07075096,3738.3,3738.2,1.36358869]
[1717060404276,3.25375096,3738.3,3738.2,1.36358869]
[1717060404617,4.07073812,3738.3,3738.2,1.36358869]
[1717060406292,3.25373812,3738.3,3738.2,3.78904756]
[1717060406493,4.07073812,3738.3,3738.2,3.78904756]
[1717060406810,2.67502,3738.3,3738.2,3.78904756]
[1717060407115,3.49202,3738.3,3738.2,3.78904756]
[1717060409922,2.67502,3738.3,3738.2,3.78904756]
[1717060410131,3.49202,3738.3,3738.2,3.78904756]
[1717060411428,3.49202,3738.3,3738.2,3.65268869]
[1717060412101,2.67502,3738.3,3738.2,3.65268869]
[1717060413104,2.67502,3738.3,3738.2,1.36358869]
[1717060413323,2.67502,3738.3,3738.2,1.29789222]
[1717060413523,2.67502,3738.3,3738.2,1.36321128]
[1717060413730,3.49202,3738.3,3738.2,1.36321128]
[1717060416143,0.05087541,3738.6,3738.2,1.74806241]
[1717060416445,0.05087541,3738.6,3738.4,2.28]
[1717060416738,0.05087541,3738.6,3738.5,1.36316182]
[1717060444254,1.99481843,3738.6,3738.5,1.36316182]
[1717060455664,0.57857503,3739.0,3738.5,1.36316182]
[1717060455869,2.3058,3739.7,3739.1,2.67441]
[1717060456146,2.3058,3739.7,3739.6,1.29789222]
[1717060457448,2.6734,3740.6,3739.6,1.29789222]
[1717060457649,69.39759501,3739.9,3739.8,2.11489222]
[1717060457849,64.90262781,3739.9,3739.8,5.88262996]
[1717060458052,64.90262781,3739.9,3739.8,6.43262996]
[1717060458652,64.90262781,3739.9,3739.8,5.61562996]
[1717060458856,64.90262781,3739.9,3739.8,6.43262996]
[1717060459158,64.90262781,3739.9,3739.8,5.61562996]
[1717060459605,64.90262781,3739.9,3739.8,6.43262996]
[1717060460209,64.90262781,3739.9,3739.8,1.29789222]
[1717060460425,67.38062781,3739.9,3739.8,1.29789222]
[1717060460840,68.19762781,3739.9,3739.8,1.29789222]
[1717060461214,67.38062781,3739.9,3739.8,1.29789222]
[1717060463156,2.4417,3739.8,3739.1,3.0]
[1717060463345,2.4417,3739.8,3739.2,1.29789222]
[1717060465914,2.4417,3739.8,3738.7,0.30391962]
[1717060465915,2.4417,3739.8,3739.3,1.29789222]
[1717060474300,4.94738,3739.8,3739.3,1.29789222]
[1717060474579,2.67398,3739.8,3739.3,1.29789222]
[1717060475190,5.16948,3739.8,3739.3,1.29789222]
[1717060475344,2.3116,3739.6,3739.3,1.29789222]
[1717060482275,2.67398,3739.8,3739.3,1.29789222]
[1717060487394,67.32932781,3739.9,3739.3,3.97216222]
[1717060498545,1.94345901,3739.8,3739.3,3.97216222]
[1717060499372,67.32932781,3739.9,3739.3,3.97216222]
[1717060499577,1.94344457,3739.8,3739.4,0.39721622]
[1717060499867,1.94344457,3739.8,3739.5,1.29789222]
[1717060500463,67.32932781,3739.9,3739.5,1.29789222]
[1717060501043,1.94345399,3739.8,3739.5,1.29789222]
[1717060501390,1.959,3739.7,3738.2,0.38485113]
[1717060501544,4.22565399,3739.6,3738.5,1.29789222]
[1717060501893,2.2992,3739.4,3738.5,1.29789222]
[1717060502033,1.94345399,3739.3,3738.5,1.29789222]
[1717060502475,4.61778399,3739.3,3738.5,1.29789222]
[1717060502679,1.94345399,3739.2,3738.5,1.29789222]
[1717060503135,2.67445,3739.1,3738.5,1.29789222]
[1717060503331,1.94345399,3739.0,3738.5,1.29789222]
[1717060503552,2.4215,3738.9,3738.5,1.29789222]
[1717060503744,1.94345399,3738.8,3738.5,1.29789222]
[1717060504680,1.94345399,3738.8,3738.6,0.05221073]
[1717060504882,1.94345399,3738.8,3738.7,1.29789222]
[1717060506541,1.94345399,3738.8,3737.8,3.0]
[1717060506778,1.94345399,3738.8,3737.9,1.86543522]
[1717060507087,2.67475,3738.7,3737.9,1.91778054]
[1717060507383,2.67475,3738.7,3737.9,1.35023754]
[1717060507384,1.94345399,3738.6,3737.9,1.35023754]
[1717060507585,2.3603,3738.5,3737.9,1.35023754]
[1717060507899,1.94345399,3738.4,3737.9,1.29789222]
[1717060508446,1.94345399,3738.4,3738.0,0.05233522]
[1717060508647,1.94345399,3738.4,3737.3,3.0]
[1717060508648,1.94345399,3738.4,3738.1,1.29789222]
[1717060510560,2.3603,3738.5,3738.1,1.29789222]
[1717060510768,2.3603,3738.5,3738.2,0.05231503]
[1717060510987,2.3603,3738.5,3738.3,1.29789222]
[1717060513114,1.94424541,3738.6,3738.1,1.29789222]
[1717060513468,1.94424541,3738.6,3738.2,0.0528456]
[1717060513692,5.17198,3738.5,3738.2,1.35073782]
[1717060514705,5.17198,3738.5,3738.2,1.29789222]
[1717060515407,5.17198,3738.5,3737.4,0.807038]
[1717060515607,5.17198,3738.5,3737.5,1.91805602]
[1717060515816,5.17198,3738.5,3737.5,1.97097229]
[1717060516696,7.38,3739.1,3737.5,1.35080849]
[1717060516697,2.67519,3738.1,3737.5,1.35080849]
[1717060516901,2.67519,3738.1,3737.5,0.05291627]
[1717060516902,2.67547,3737.7,3737.5,0.05291627]
[1717060517124,4.63447,3737.7,3737.5,0.05291627]
[1717060517284,4.39705318,3737.6,3736.0,4.94673]
[1717060517637,1.94485318,3737.5,3736.6,1.29789222]
[1717060517834,2.4522,3737.6,3736.6,1.29789222]
[1717060518039,2.4522,3737.6,3736.7,0.04816473]
[1717060518337,2.4522,3737.6,3736.8,1.43249792]
[1717060518833,2.67561,3737.5,3736.9,0.04815412]
[1717060519318,2.6758,3737.2,3736.1,0.494673]
[1717060519469,2.6758,3737.2,3736.2,1.29789222]
[1717060519674,2.6758,3737.2,3736.3,0.04830751]
[1717060519916,2.6758,3737.2,3736.4,1.29789222]
[1717060520117,2.6758,3737.2,3736.4,1.48197949]
[1717060520297,2.6758,3737.2,3736.5,0.04828731]
[1717060520504,2.6758,3737.2,3736.6,1.29789222]
[1717060520707,2.6758,3737.2,3736.5,0.04828731]
[1717060520914,10.197,3737.9,3736.7,0.04831509]
[1717060520915,2.67605,3736.9,3736.7,0.04831509]
[1717060521104,3.139555,3736.9,3736.6,0.0483252]
[1717060521333,5.452055,3736.9,3736.8,0.04830499]
[1717060521625,5.452055,3736.9,3735.3,5.04472]
[1717060521824,4.98855,3736.9,3735.5,1.29789222]
[1717060522185,4.98855,3736.9,3735.6,0.04842625]
[1717060522523,4.98855,3736.9,3735.7,1.29789222]
[1717060522884,4.98855,3736.9,3735.8,0.04840603]
[1717060523084,4.98855,3736.9,3735.9,1.29789222]
[1717060523612,4.98855,3736.9,3736.0,0.04838582]
[1717060523811,4.98855,3736.9,3736.1,1.29789222]
[1717060524178,4.98855,3736.9,3736.2,0.04836561]
[1717060524383,4.98855,3736.9,3736.3,1.29789222]
[1717060524593,4.98855,3736.9,3736.4,0.13462578]
[1717060524828,4.98855,3736.9,3736.5,1.29789222]
[1717060525333,4.98855,3736.9,3735.8,3.0]
[1717060525334,5.17485,3736.7,3736.6,0.0483252]
[1717060525846,5.17485,3736.7,3735.3,3.0]
[1717060526015,5.17485,3736.7,3735.4,1.91420269]
[1717060527330,5.17485,3736.7,3735.5,1.29789222]
[1717060527648,5.17485,3736.7,3735.6,1.34707355]
[1717060528045,5.17485,3736.7,3735.6,3.63477355]
[1717060530445,5.17485,3736.7,3735.7,1.29789222]
[1717060530645,5.17485,3736.7,3735.8,0.41263847]
[1717060530845,5.17485,3736.7,3735.9,1.29789222]
[1717060531046,5.17485,3736.7,3736.0,0.0491409]
[1717060531248,5.17485,3736.7,3736.1,1.29789222]
[1717060531409,5.17485,3736.7,3736.2,0.04912069]
[1717060531608,5.17485,3736.7,3736.3,1.29789222]
[1717060531809,5.17485,3736.7,3736.4,0.04910048]
[1717060532055,5.17485,3736.7,3736.5,1.29789222]
[1717060532208,2.4987,3736.7,3736.6,0.04908028]
[1717060532409,2.2975,3737.1,3736.6,1.3469725]
[1717060532610,2.2975,3737.1,3736.7,1.29789222]
[1717060533112,1.959,3736.8,3735.8,0.36347736]
[1717060533314,2.67618,3736.7,3735.9,1.29789222]
[1717060533634,2.67618,3736.7,3735.9,1.34520131]
[1717060536622,2.281,3737.1,3735.9,1.34520131]
[1717060537718,2.281,3737.1,3735.9,4.34520131]
[1717060537914,2.281,3737.1,3736.0,0.67888013]
[1717060538145,2.281,3737.1,3736.1,1.29789222]
[1717060538346,2.281,3737.1,3736.1,1.3451747]
[1717060539208,2.67583,3737.2,3736.1,1.3451747]
[1717060539209,7.38,3737.4,3736.4,1.29789222]
[1717060539395,7.38,3737.4,3736.5,1.69531944]
[1717060539663,7.38,3737.4,3736.6,1.29789222]
[1717060539837,7.38,3737.4,3736.7,0.04725706]
[1717060540033,7.38,3737.4,3736.8,1.29789222]
[1717060540239,5.49172,3738.8,3736.8,1.29789222]
[1717060540240,2.413,3738.2,3737.1,1.29789222]
[1717060540579,12.36,3739.1,3737.2,0.04720656]
[1717060540580,1.959,3737.5,3737.2,0.04720656]
[1717060541024,2.2745,3737.4,3737.1,1.29789222]
[1717060541360,2.2745,3737.4,3737.2,0.04708816]
[1717060542082,2.2745,3737.4,3737.1,1.29789222]
[1717060542428,2.2745,3737.4,3737.2,0.04708816]
[1717060542625,2.2745,3737.4,3737.1,1.29789222]
[1717060542868,2.2745,3737.4,3737.2,0.04710416]
[1717060543070,2.2745,3737.4,3737.1,1.29789222]
[1717060543240,2.2745,3737.4,3737.2,0.04700496]
[1717060543440,2.67548,3737.7,3737.3,1.29789222]
[1717060543637,2.67548,3737.7,3737.4,0.04698476]
[1717060543883,4.902028,3737.7,3737.4,1.29789222]
[1717060544959,4.902028,3737.7,3736.4,3.0]
[1717060544960,2.67568,3737.4,3736.4,3.0]
[1717060545307,2.67568,3737.4,3736.5,1.34496788]
[1717060546850,7.38,3738.2,3736.5,1.34496788]
[1717060546851,2.67588,3737.1,3736.5,1.34496788]
[1717060547081,0.52138064,3737.0,3736.5,1.34496788]
[1717060547248,2.67588,3737.1,3736.5,1.34496788]
[1717060550675,4.96165,3736.9,3736.5,1.34496788]
[1717060550895,4.96165,3736.9,3736.5,1.29789222]
[1717060551491,4.96165,3736.9,3735.7,3.0]
[1717060551675,4.96165,3736.9,3735.8,1.34518888]
[1717060551895,2.67617,3736.7,3735.8,1.34518888]
[1717060552073,2.67617,3736.7,3736.0,1.29789222]
[1717060552417,2.67617,3736.7,3736.1,0.04726635]
[1717060552580,2.67617,3736.7,3736.2,1.29789222]
[1717060552783,2.67617,3736.7,3736.2,1.68110808]
[1717060552982,2.67617,3736.7,3736.3,0.04724614]
[1717060553216,2.67617,3736.7,3736.4,1.29789222]
[1717060553509,2.67617,3736.7,3736.5,0.04722593]
[1717060553715,2.67617,3736.7,3736.6,1.29789222]
[1717060554082,2.67583,3737.2,3736.6,1.34510805]
[1717060554397,2.52422915,3737.1,3736.6,1.29789222]
[1717060554590,1.94527097,3737.0,3736.6,1.29789222]
[1717060556308,2.67602,3736.9,3736.6,1.29789222]
[1717060556498,2.67615,3736.7,3736.6,1.29789222]
[1717060556740,5.11145,3736.7,3736.6,1.29789222]
[1717060556914,7.63565212,3736.7,3736.6,1.29789222]
[1717060557775,7.63568438,3736.7,3736.6,1.29789222]
[1717060559848,7.63568438,3736.7,3735.7,3.872392]
[1717060560063,1.94525486,3736.6,3735.8,2.19230142]
[1717060560215,1.94525486,3736.6,3735.8,2.23973892]
[1717060560849,1.94525486,3736.6,3736.1,2.2725]
[1717060561055,1.94525486,3736.6,3736.2,1.29789222]
[1717060561329,1.94525486,3736.6,3736.2,1.3452893]
[1717060562535,1.94525486,3736.6,3736.2,1.72145823]
[1717060563045,1.94525486,3736.6,3736.2,1.3452893]
[1717060570306,2.52423265,3736.6,3736.2,1.3452893]
[1717060570523,1.94525486,3736.5,3736.2,1.3452893]
[1717060571232,1.94525486,3736.4,3736.2,1.3452893]
[1717060571419,1.94525486,3736.3,3736.2,1.3452893]
[1717060573345,2.4345,3736.4,3736.2,1.3452893]
[1717060573571,1.94525486,3736.3,3736.2,1.3452893]
[1717060573909,1.94525486,3736.3,3736.2,1.29789222]
[1717060575451,3.90425486,3736.3,3734.6,2.67762]
[1717060575753,2.4304,3736.1,3734.7,1.34404202]
[1717060575907,1.94525486,3736.0,3734.7,1.99581822]
[1717060576111,1.94525486,3735.9,3734.7,1.99581822]
[1717060576432,2.4764,3735.7,3734.7,1.99581822]
[1717060576621,1.94525486,3735.6,3734.9,3.62809222]
[1717060577126,1.94525486,3735.6,3735.0,0.04611946]
[1717060577337,1.94525486,3735.6,3735.1,1.29789222]
[1717060577736,1.94525486,3735.6,3735.2,0.04619835]
[1717060577945,1.94525486,3735.6,3735.3,1.29789222]
[1717060578328,1.94525486,3735.6,3735.4,0.04617813]
[1717060578532,2.67684,3735.8,3735.5,1.29789222]
[1717060578729,1.94586062,3735.7,3735.5,1.29789222]
[1717060578957,2.52499811,3735.7,3735.6,0.04615792]
[1717060579116,2.52499811,3735.7,3735.6,1.34405014]
[1717060579315,2.52500138,3735.7,3735.6,1.34405014]
[1717060579558,1.94586062,3735.7,3735.6,1.34405014]
[1717060580116,2.52501125,3735.7,3735.6,1.34405014]
[1717060580415,2.52501119,3735.7,3735.6,1.34405014]
[1717060580956,2.90958574,3735.7,3735.6,0.04615792]
[1717060581157,5.25908574,3735.7,3735.6,0.04615792]
[1717060581362,2.67707,3735.5,3734.7,3.0]
[1717060581652,1.94586062,3735.4,3735.3,2.4174]
[1717060581815,0.57912716,3736.1,3735.3,2.4174]
[1717060582019,2.67655,3736.2,3735.4,2.10735922]
[1717060582219,1.94548729,3736.1,3735.4,2.10735922]
[1717060582420,1.94548729,3736.1,3735.5,0.04630233]
[1717060582626,1.94548729,3736.1,3735.6,1.29789222]
[1717060583075,1.94548729,3736.1,3735.7,0.04628212]
[1717060583237,1.94548729,3736.1,3735.8,1.43230965]
[1717060583426,0.57901186,3736.6,3735.8,1.29789222]
[1717060583624,1.94547889,3736.5,3735.9,0.0462619]
[1717060583959,1.94547889,3736.5,3736.0,1.29789222]
[1717060584585,1.94547889,3736.5,3736.1,0.04624169]
[1717060584721,1.94547889,3736.5,3736.2,1.29789222]
[1717060585565,2.67637,3736.4,3736.2,1.29789222]
[1717060585727,1.94547889,3736.3,3736.2,1.29789222]
[1717060587722,4.25367889,3736.3,3736.2,1.29789222]
[1717060588693,2.67653,3736.2,3735.3,2.4174]
[1717060588891,1.94547889,3736.1,3735.4,1.34243912]
[1717060589106,3.90447889,3736.1,3735.4,1.34243912]
[1717060589335,1.94547889,3736.0,3735.4,1.34243912]
[1717060589465,2.52457833,3736.0,3735.4,1.34243912]
[1717060589908,1.94547889,3735.9,3735.4,1.34243912]
[1717060590120,1.94547889,3735.8,3735.4,1.34243912]
[1717060590270,6.58135889,3735.7,3735.4,0.0445469]
[1717060590463,6.58135889,3735.7,3734.3,2.4545]
[1717060590464,5.10401,3735.5,3734.3,2.4545]
[1717060590711,1.94547889,3735.4,3734.4,1.34254024]
[1717060591695,1.94547889,3735.4,3735.0,1.29789222]
[1717060591918,2.4588,3736.4,3735.3,3.62969222]
[1717060592094,1.94588549,3736.3,3735.4,0.0445469]
[1717060592281,2.67662,3736.1,3735.3,3.62969222]
[1717060592478,1.94588549,3736.0,3735.4,0.39926614]
[1717060592729,1.94588549,3736.0,3735.9,1.29789222]
[1717060593016,1.94588549,3736.5,3735.9,1.29789222]
[1717060593171,1.94588549,3736.5,3735.9,1.34238859]
[1717060595305,1.959,3736.2,3736.0,1.29789222]
[1717060595618,4.34508549,3736.1,3736.0,1.29789222]
[1717060596119,4.92416488,3736.1,3736.0,1.29789222]
[1717060598172,2.52496488,3736.1,3736.0,1.29789222]
[1717060598367,1.94588549,3736.1,3736.0,1.29789222]
[1717060598603,2.67651,3736.2,3736.0,1.29789222]
[1717060598841,4.993,3735.9,3734.9,2.2716]
[1717060599029,1.94588549,3735.8,3735.0,1.29789222]
[1717060600674,1.94588549,3735.8,3735.1,0.04453566]
[1717060600986,1.94588549,3735.8,3735.2,1.29789222]
[1717060601182,1.94588549,3735.8,3735.2,1.64314362]
[1717060601389,1.94588549,3735.8,3735.3,0.04451544]
[1717060601584,1.94588549,3735.8,3735.4,1.29789222]
[1717060602000,1.94588549,3735.8,3735.5,0.04449523]
[1717060602203,1.94588549,3735.8,3735.6,1.29789222]
[1717060602713,1.94588549,3735.8,3735.7,0.04447501]
[1717060603012,1.94588549,3735.8,3735.7,1.29789222]
[1717060604477,1.94588549,3735.8,3735.7,1.34236723]
[1717060604668,1.94588549,3735.8,3735.7,1.29789222]
[1717060607278,1.94588549,3735.8,3735.7,1.3425175]
[1717060609516,2.52495271,3736.3,3735.7,1.3425175]
[1717060609732,1.94588549,3736.2,3735.8,1.29789222]
[1717060610084,1.94588549,3736.2,3735.9,0.04460507]
[1717060610317,1.94588549,3736.2,3736.0,1.29789222]
[1717060610502,1.94588549,3736.2,3736.1,0.04458485]
[1717060610708,1.94588549,3736.2,3736.1,1.34247707]
[1717060612298,1.94588549,3736.2,3736.1,1.47672478]
[1717060612505,0.5789803,3736.8,3736.1,1.47672478]
[1717060612506,1.94588549,3736.7,3736.1,1.47672478]
[1717060612812,1.94588549,3736.6,3736.2,1.29789222]
[1717060613129,1.94588549,3736.5,3736.2,1.29789222]
[1717060613333,1.94588549,3736.4,3736.2,1.29789222]
[1717060613537,1.94588549,3736.6,3736.2,1.29789222]
[1717060613697,1.94588549,3736.5,3736.2,3.66299222]
[1717060614048,0.57898066,3736.8,3736.2,3.66299222]
[1717060614049,1.94588549,3736.4,3736.3,0.41086387]
[1717060614502,1.94588549,3736.7,3736.3,0.41086387]
[1717060615026,1.94588549,3736.6,3736.3,0.41086387]
[1717060615221,0.57890621,3737.3,3736.5,1.29789222]
[1717060615428,2.67587,3737.1,3736.5,1.29789222]
[1717060615639,1.9451294,3737.0,3736.6,0.04453434]
[1717060615851,1.9451294,3737.0,3736.7,1.29789222]
[1717060615852,2.52404143,3737.0,3736.7,1.29789222]
[1717060616165,1.9451294,3736.9,3736.8,0.04423283]
[1717060616358,1.9451294,3737.0,3736.8,1.34212505]
[1717060616571,1.9451294,3737.0,3736.9,1.29789222]
[1717060616721,1.9451294,3737.0,3736.9,1.34211495]
[1717060617315,1.9451294,3737.0,3736.9,1.47632645]
[1717060617720,1.9451294,3737.4,3736.9,1.47632645]
[1717060618020,1.9451294,3737.3,3736.9,1.47632645]
[1717060618226,1.9451294,3737.2,3736.9,1.47632645]
[1717060618432,1.9451294,3737.1,3736.9,1.47632645]
[1717060618656,2.67555,3737.6,3737.0,0.14763265]
[1717060618975,1.94494392,3737.5,3737.1,1.34209475]
[1717060620581,1.94494392,3737.5,3737.1,3.74849475]
[1717060620940,1.94494392,3737.5,3737.2,1.29789222]
[1717060621274,1.94494392,3737.4,3737.2,1.34208465]
[1717060621568,2.67519,3738.1,3737.3,1.29789222]
[1717060621777,1.94467038,3738.0,3737.3,1.34207455]
[1717060622966,1.94467038,3738.0,3737.8,1.29789222]
[1717060623140,2.67482,3738.6,3737.9,1.29789222]
[1717060623343,1.94437346,3738.5,3738.0,1.70802301]
[1717060623880,2.298,3739.0,3738.0,1.70802301]
[1717060624174,1.94424773,3738.9,3738.0,1.29789222]
[1717060624484,1.94424773,3738.9,3738.1,0.04194162]
[1717060624678,1.94424773,3738.9,3738.2,1.29789222]
[1717060625179,2.67466,3738.8,3738.3,0.0402438]
[1717060625494,2.67466,3738.8,3738.3,1.29789222]
[1717060625634,2.67481,3738.6,3738.4,0.04011553]
[1717060626117,6.90348297,3738.5,3736.3,0.36629922]